[Event "*** SCC Grand Prix: Titled Tuesday Blitz"]
[Site "Chess.com"]
[Date "2020.10.13"]
[Round "2"]
[White "MITerryble"]
[Black "Legendinunknown"]
[Result "0-1"]
[WhiteElo "2919"]
[BlackElo "2608"]
[TimeControl "180+1"]
[EndTime "10:17:35 PDT"]
[Termination "Legendinunknown won by resignation"]

1. d4 {[%clk 0:02:56.4]} 1... d5 {[%clk 0:02:58.5]} 2. Nf3 {[%clk 0:02:55.2]}
2... Nf6 {[%clk 0:02:57.9]} 3. c4 {[%clk 0:02:55]} 3... c6 {[%clk 0:02:57.9]} 4.
Nc3 {[%clk 0:02:54.7]} 4... e6 {[%clk 0:02:57.3]} 5. Bg5 {[%clk 0:02:52.9]} 5...
dxc4 {[%clk 0:02:52.8]} 6. e4 {[%clk 0:02:52.5]} 6... b5 {[%clk 0:02:52.6]} 7.
e5 {[%clk 0:02:52.8]} 7... h6 {[%clk 0:02:53]} 8. Bh4 {[%clk 0:02:53]} 8... g5
{[%clk 0:02:53.1]} 9. exf6 {[%clk 0:02:53.4]} 9... gxh4 {[%clk 0:02:52]} 10. Ne5
{[%clk 0:02:53.8]} 10... Qxf6 {[%clk 0:02:40.4]} 11. g3 {[%clk 0:02:53.9]} 11...
Nd7 {[%clk 0:02:20.5]} 12. Qe2 {[%clk 0:02:53.8]} 12... Bb7 {[%clk 0:02:11.6]}
13. Bg2 {[%clk 0:02:53.1]} 13... Nxe5 {[%clk 0:02:04.4]} 14. dxe5 {[%clk
0:02:52.7]} 14... Qe7 {[%clk 0:01:52.8]} 15. a4 {[%clk 0:02:32]} 15... Bg7
{[%clk 0:01:47.5]} 16. O-O {[%clk 0:01:32.5]} 16... O-O {[%clk 0:01:36.5]} 17.
f4 {[%clk 0:01:15.6]} 17... hxg3 {[%clk 0:01:30.6]} 18. hxg3 {[%clk 0:01:15.4]}
18... a6 {[%clk 0:01:20.3]} 19. Ne4 {[%clk 0:01:12.8]} 19... c5 {[%clk
0:01:15.5]} 20. Nf6+ {[%clk 0:01:12.6]} 20... Kh8 {[%clk 0:01:11.7]} 21. Qc2
{[%clk 0:00:24.7]} 21... Bxf6 {[%clk 0:00:56.3]} 22. exf6 {[%clk 0:00:25.6]}
22... Qc7 {[%clk 0:00:54]} 23. Bxb7 {[%clk 0:00:21.7]} 23... Qxb7 {[%clk
0:00:52.4]} 24. Qh2 {[%clk 0:00:22.4]} 24... Kh7 {[%clk 0:00:50.4]} 25. Qc2+
{[%clk 0:00:22.3]} 25... Kh8 {[%clk 0:00:46.2]} 26. Qh2 {[%clk 0:00:21.3]} 26...
Qe4 {[%clk 0:00:32.6]} 27. Qxh6+ {[%clk 0:00:20.1]} 27... Qh7 {[%clk 0:00:32.1]}
28. Qxh7+ {[%clk 0:00:03.3]} 28... Kxh7 {[%clk 0:00:30.7]} 29. g4 {[%clk
0:00:04.2]} 29... Kg6 {[%clk 0:00:30.1]} 30. g5 {[%clk 0:00:04.3]} 30... Rfd8
{[%clk 0:00:28.1]} 31. Rf2 {[%clk 0:00:03]} 31... b4 {[%clk 0:00:26.3]} 32. Rc1
{[%clk 0:00:02.1]} 32... Rd4 {[%clk 0:00:26.1]} 33. Kg2 {[%clk 0:00:03]} 33...
Rad8 {[%clk 0:00:24.9]} 34. Rh1 {[%clk 0:00:02.6]} 34... Kf5 {[%clk 0:00:23.6]}
35. Rh6 {[%clk 0:00:03.1]} 35... c3 {[%clk 0:00:20.8]} 36. bxc3 {[%clk
0:00:02.8]} 36... bxc3 {[%clk 0:00:21.7]} 37. Rh3 {[%clk 0:00:03.7]} 37... Rc4
{[%clk 0:00:20.8]} 38. Rc2 {[%clk 0:00:03.1]} 38... Rd2+ {[%clk 0:00:20.7]} 39.
Rxd2 {[%clk 0:00:03.4]} 39... cxd2 {[%clk 0:00:21.6]} 40. Rd3 {[%clk 0:00:03.5]}
40... Rd4 {[%clk 0:00:21.7]} 41. Rxd4 {[%clk 0:00:03.3]} 41... cxd4 {[%clk
0:00:22.6]} 0-1

[Event "*** SCC Grand Prix: Titled Tuesday Blitz"]
[Site "Chess.com"]
[Date "2020.10.13"]
[Round "2"]
[White "vladislavkovalev"]
[Black "Iskusnyh"]
[Result "1-0"]
[WhiteElo "2865"]
[BlackElo "2568"]
[TimeControl "180+1"]
[EndTime "10:17:35 PDT"]
[Termination "vladislavkovalev won on time"]

1. e4 {[%clk 0:03:00.9]} 1... e6 {[%clk 0:03:00]} 2. d4 {[%clk 0:03:01]} 2... d5
{[%clk 0:03:00.5]} 3. Nd2 {[%clk 0:03:01.7]} 3... c5 {[%clk 0:02:59.3]} 4. Ngf3
{[%clk 0:03:02.3]} 4... cxd4 {[%clk 0:02:58.8]} 5. Nxd4 {[%clk 0:03:03.2]} 5...
Nc6 {[%clk 0:02:57.8]} 6. Bb5 {[%clk 0:03:03.5]} 6... Bd7 {[%clk 0:02:57.5]} 7.
Nxc6 {[%clk 0:03:04]} 7... bxc6 {[%clk 0:02:58]} 8. Bd3 {[%clk 0:03:04.7]} 8...
Bd6 {[%clk 0:02:55.4]} 9. O-O {[%clk 0:02:58.6]} 9... Ne7 {[%clk 0:02:54.1]} 10.
Qe2 {[%clk 0:02:55.3]} 10... Qc7 {[%clk 0:02:52]} 11. Nf3 {[%clk 0:02:55.3]}
11... Ng6 {[%clk 0:02:46.6]} 12. Re1 {[%clk 0:02:55.3]} 12... O-O {[%clk
0:02:34.7]} 13. e5 {[%clk 0:02:54.4]} 13... Be7 {[%clk 0:02:34.2]} 14. h4 {[%clk
0:02:36.2]} 14... c5 {[%clk 0:02:04.5]} 15. h5 {[%clk 0:02:31.7]} 15... c4
{[%clk 0:02:04]} 16. Bxg6 {[%clk 0:02:26]} 16... fxg6 {[%clk 0:01:56.1]} 17.
hxg6 {[%clk 0:02:25.5]} 17... hxg6 {[%clk 0:01:46.5]} 18. Bg5 {[%clk 0:02:23.7]}
18... Bc5 {[%clk 0:01:37.7]} 19. Be3 {[%clk 0:02:23.7]} 19... Be7 {[%clk
0:01:27.6]} 20. Rad1 {[%clk 0:02:17.7]} 20... Rab8 {[%clk 0:01:14.7]} 21. c3
{[%clk 0:02:17.7]} 21... Rf5 {[%clk 0:00:56.2]} 22. Rd4 {[%clk 0:02:11.9]} 22...
Rbf8 {[%clk 0:00:41.4]} 23. Rg4 {[%clk 0:02:06.8]} 23... Be8 {[%clk 0:00:35.2]}
24. Bd4 {[%clk 0:01:11.9]} 24... g5 {[%clk 0:00:28.8]} 25. Qe3 {[%clk
0:01:01.5]} 25... Bh5 {[%clk 0:00:26.5]} 26. Rg3 {[%clk 0:00:46.7]} 26... Bxf3
{[%clk 0:00:24.6]} 27. gxf3 {[%clk 0:00:47.6]} 27... a5 {[%clk 0:00:16.1]} 28.
Kg2 {[%clk 0:00:47.9]} 28... Qb7 {[%clk 0:00:14.9]} 29. Qe2 {[%clk 0:00:46.3]}
29... Qb5 {[%clk 0:00:13.8]} 30. Rh1 {[%clk 0:00:46.6]} 30... Qe8 {[%clk
0:00:14.3]} 31. Rgh3 {[%clk 0:00:44.8]} 31... Qg6 {[%clk 0:00:14.1]} 32. Qd1
{[%clk 0:00:40.2]} 32... Rf4 {[%clk 0:00:13.3]} 33. Rg3 {[%clk 0:00:36]} 33...
Qf5 {[%clk 0:00:11.4]} 34. Be3 {[%clk 0:00:34.5]} 34... Kf7 {[%clk 0:00:05.6]}
35. Bxf4 {[%clk 0:00:34.5]} 35... gxf4 {[%clk 0:00:05.5]} 36. Rg4 {[%clk
0:00:35.1]} 36... g5 {[%clk 0:00:05.2]} 37. Qb1 {[%clk 0:00:29.1]} 37... Kg6
{[%clk 0:00:04.3]} 38. Qe1 {[%clk 0:00:15]} 38... Rb8 {[%clk 0:00:03.2]} 39. Qg1
{[%clk 0:00:13.1]} 1-0

[Event "*** SCC Grand Prix: Titled Tuesday Blitz"]
[Site "Chess.com"]
[Date "2020.10.13"]
[Round "2"]
[White "Lagmantr"]
[Black "BigAl"]
[Result "1-0"]
[WhiteElo "2723"]
[BlackElo "2502"]
[TimeControl "180+1"]
[EndTime "10:17:36 PDT"]
[Termination "Lagmantr won on time"]

1. Nf3 {[%clk 0:02:02.3]} 1... Nf6 {[%clk 0:02:58]} 2. c4 {[%clk 0:02:03]} 2...
g6 {[%clk 0:02:57.9]} 3. b3 {[%clk 0:02:03.1]} 3... Bg7 {[%clk 0:02:58.8]} 4.
Bb2 {[%clk 0:02:03.7]} 4... O-O {[%clk 0:02:58.9]} 5. d4 {[%clk 0:02:04.2]} 5...
d5 {[%clk 0:02:51.4]} 6. g3 {[%clk 0:02:03.1]} 6... dxc4 {[%clk 0:02:48]} 7.
bxc4 {[%clk 0:02:02.8]} 7... c5 {[%clk 0:02:45]} 8. Bg2 {[%clk 0:01:55.3]} 8...
Nc6 {[%clk 0:02:30.1]} 9. d5 {[%clk 0:01:51.2]} 9... Na5 {[%clk 0:02:25]} 10.
Nbd2 {[%clk 0:01:51.6]} 10... Nxd5 {[%clk 0:02:10.8]} 11. Bxg7 {[%clk
0:01:43.7]} 11... Ne3 {[%clk 0:02:10.9]} 12. fxe3 {[%clk 0:01:41.4]} 12... Kxg7
{[%clk 0:02:11.1]} 13. Qc2 {[%clk 0:01:36]} 13... f6 {[%clk 0:01:55]} 14. O-O
{[%clk 0:01:30.3]} 14... Qc7 {[%clk 0:01:55.2]} 15. Nb3 {[%clk 0:01:26.7]} 15...
Bf5 {[%clk 0:01:41.2]} 16. e4 {[%clk 0:01:26.2]} 16... Be6 {[%clk 0:01:41.6]}
17. Nxa5 {[%clk 0:01:24]} 17... Qxa5 {[%clk 0:01:41.8]} 18. Rab1 {[%clk
0:01:23.7]} 18... Qa6 {[%clk 0:01:37.7]} 19. e5 {[%clk 0:01:09.3]} 19... Rab8
{[%clk 0:01:27.4]} 20. exf6+ {[%clk 0:01:08.4]} 20... exf6 {[%clk 0:01:27.4]}
21. Nd2 {[%clk 0:01:06.2]} 21... Bf5 {[%clk 0:01:10.6]} 22. e4 {[%clk
0:01:01.1]} 22... Be6 {[%clk 0:01:10]} 23. Qc3 {[%clk 0:01:00.8]} 23... Qd6
{[%clk 0:01:07.9]} 24. Nf3 {[%clk 0:00:55.6]} 24... b6 {[%clk 0:00:59.1]} 25.
Rbd1 {[%clk 0:00:50]} 25... Qe7 {[%clk 0:00:57.5]} 26. e5 {[%clk 0:00:50.3]}
26... f5 {[%clk 0:00:57.9]} 27. Rd6 {[%clk 0:00:49.7]} 27... h6 {[%clk
0:00:46.2]} 28. Rfd1 {[%clk 0:00:48]} 28... Rf7 {[%clk 0:00:46.5]} 29. Nh4
{[%clk 0:00:43.7]} 29... Re8 {[%clk 0:00:37.2]} 30. Bc6 {[%clk 0:00:36]} 30...
g5 {[%clk 0:00:31.3]} 31. Bxe8 {[%clk 0:00:32.2]} 31... Qxe8 {[%clk 0:00:31.5]}
32. Ng2 {[%clk 0:00:25.5]} 32... Re7 {[%clk 0:00:28.8]} 33. Ne3 {[%clk
0:00:23.9]} 33... Qh5 {[%clk 0:00:26.3]} 34. Rxe6 {[%clk 0:00:14]} 34... Rxe6
{[%clk 0:00:26]} 35. Nxf5+ {[%clk 0:00:14.6]} 35... Kf7 {[%clk 0:00:17.3]} 36.
Rf1 {[%clk 0:00:13.7]} 36... Kg8 {[%clk 0:00:16.3]} 37. Qd3 {[%clk 0:00:13.4]}
37... Qe8 {[%clk 0:00:15.3]} 38. Qd5 {[%clk 0:00:12]} 38... Kh7 {[%clk
0:00:14.7]} 39. Nd6 {[%clk 0:00:11.8]} 39... Qg8 {[%clk 0:00:13.1]} 40. Rf7+
{[%clk 0:00:10.6]} 1-0

[Event "*** SCC Grand Prix: Titled Tuesday Blitz"]
[Site "Chess.com"]
[Date "2020.10.13"]
[Round "2"]
[White "r31415"]
[Black "Fischerev7"]
[Result "1-0"]
[WhiteElo "2467"]
[BlackElo "2245"]
[TimeControl "180+1"]
[EndTime "10:17:36 PDT"]
[Termination "r31415 won by resignation"]

1. d4 {[%clk 0:03:00.9]} 1... Nf6 {[%clk 0:02:58.9]} 2. c4 {[%clk 0:03:00.6]}
2... e6 {[%clk 0:02:58.5]} 3. Nf3 {[%clk 0:02:59.8]} 3... Bb4+ {[%clk
0:02:58.3]} 4. Nc3 {[%clk 0:02:56.9]} 4... a5 {[%clk 0:02:57.8]} 5. Qc2 {[%clk
0:02:53.7]} 5... O-O {[%clk 0:02:57.4]} 6. Bg5 {[%clk 0:02:52.1]} 6... d5 {[%clk
0:02:50.8]} 7. e3 {[%clk 0:02:51.6]} 7... Nbd7 {[%clk 0:02:49.9]} 8. Bd3 {[%clk
0:02:49.4]} 8... h6 {[%clk 0:02:49.8]} 9. Bh4 {[%clk 0:02:49.1]} 9... b6 {[%clk
0:02:30.2]} 10. O-O {[%clk 0:02:49.1]} 10... Be7 {[%clk 0:02:25.4]} 11. cxd5
{[%clk 0:02:42]} 11... exd5 {[%clk 0:02:21.1]} 12. Ne5 {[%clk 0:02:24.1]} 12...
Bb7 {[%clk 0:02:20.4]} 13. f4 {[%clk 0:01:49.9]} 13... c5 {[%clk 0:02:13.7]} 14.
Qa4 {[%clk 0:01:36.4]} 14... Rc8 {[%clk 0:01:49.9]} 15. Rad1 {[%clk 0:01:29.3]}
15... Re8 {[%clk 0:01:41.6]} 16. Bb5 {[%clk 0:01:28]} 16... Nxe5 {[%clk
0:00:15.7]} 17. Bxe8 {[%clk 0:01:17.6]} 17... Nxe8 {[%clk 0:00:12.9]} 18. Bxe7
{[%clk 0:01:14.2]} 18... Qxe7 {[%clk 0:00:12.9]} 19. fxe5 {[%clk 0:01:14.7]}
19... Nc7 {[%clk 0:00:08.3]} 20. Rf3 {[%clk 0:01:05.9]} 20... cxd4 {[%clk
0:00:08.3]} 21. exd4 {[%clk 0:01:04.9]} 21... Ne6 {[%clk 0:00:08.6]} 22. Rdf1
{[%clk 0:01:01.1]} 22... Rf8 {[%clk 0:00:09]} 23. Rd1 {[%clk 0:00:34.5]} 23...
Qh4 {[%clk 0:00:06.4]} 24. Ne2 {[%clk 0:00:17.7]} 24... Ba6 {[%clk 0:00:05.3]}
25. Nc3 {[%clk 0:00:11.2]} 25... Bb7 {[%clk 0:00:02.7]} 26. Rf2 {[%clk
0:00:10.6]} 26... Rd8 {[%clk 0:00:01.7]} 27. Qb3 {[%clk 0:00:08.9]} 27... Rf8
{[%clk 0:00:02.6]} 28. Qxb6 {[%clk 0:00:09.1]} 28... Ba8 {[%clk 0:00:03.2]} 29.
Qa7 {[%clk 0:00:05.8]} 29... Qg5 {[%clk 0:00:04.1]} 30. Ne2 {[%clk 0:00:05.4]}
30... Qe3 {[%clk 0:00:04]} 31. Rf1 {[%clk 0:00:05.1]} 31... Qg5 {[%clk
0:00:02.8]} 32. Kh1 {[%clk 0:00:05.2]} 32... Qg6 {[%clk 0:00:02.5]} 33. Ng3
{[%clk 0:00:04.7]} 33... Nxd4 {[%clk 0:00:02.7]} 34. Qxd4 {[%clk 0:00:03.8]}
34... Bc6 {[%clk 0:00:02.4]} 35. Nf5 {[%clk 0:00:04.1]} 35... Bd7 {[%clk
0:00:02.5]} 36. Ne7+ {[%clk 0:00:04.2]} 36... Kh7 {[%clk 0:00:02.5]} 37. Nxg6
{[%clk 0:00:05.1]} 37... fxg6 {[%clk 0:00:03.4]} 38. Rxf8 {[%clk 0:00:04.5]} 1-0

[Event "*** SCC Grand Prix: Titled Tuesday Blitz"]
[Site "Chess.com"]
[Date "2020.10.13"]
[Round "2"]
[White "CaspiIsrael"]
[Black "BilodeauA"]
[Result "0-1"]
[WhiteElo "2585"]
[BlackElo "2916"]
[TimeControl "180+1"]
[EndTime "10:17:38 PDT"]
[Termination "BilodeauA won by checkmate"]

1. e4 {[%clk 0:01:45.8]} 1... e5 {[%clk 0:02:23.8]} 2. Nf3 {[%clk 0:01:44.5]}
2... Nc6 {[%clk 0:02:23.9]} 3. d4 {[%clk 0:01:43.4]} 3... exd4 {[%clk
0:02:22.3]} 4. Nxd4 {[%clk 0:01:44.3]} 4... Bc5 {[%clk 0:02:22.5]} 5. Nb3 {[%clk
0:01:44.2]} 5... Bb6 {[%clk 0:02:20.7]} 6. Nc3 {[%clk 0:01:44.7]} 6... d6 {[%clk
0:02:16.9]} 7. Qe2 {[%clk 0:01:43.1]} 7... Be6 {[%clk 0:02:16.9]} 8. Be3 {[%clk
0:01:38.8]} 8... Nf6 {[%clk 0:02:17.1]} 9. O-O-O {[%clk 0:01:32.8]} 9... O-O
{[%clk 0:02:17.4]} 10. Kb1 {[%clk 0:01:31.1]} 10... Bxe3 {[%clk 0:02:12]} 11.
Qxe3 {[%clk 0:01:31]} 11... a6 {[%clk 0:02:12.5]} 12. f3 {[%clk 0:01:30.9]}
12... b5 {[%clk 0:02:12.3]} 13. g4 {[%clk 0:01:30.7]} 13... Nd7 {[%clk
0:02:12.5]} 14. h4 {[%clk 0:01:27.2]} 14... Nb6 {[%clk 0:02:09.2]} 15. h5 {[%clk
0:01:19.1]} 15... h6 {[%clk 0:01:44]} 16. Rg1 {[%clk 0:01:01.6]} 16... f6 {[%clk
0:01:11.5]} 17. f4 {[%clk 0:00:49.1]} 17... Qe7 {[%clk 0:01:00.3]} 18. Nd4
{[%clk 0:00:45.6]} 18... Nxd4 {[%clk 0:00:50.7]} 19. Qxd4 {[%clk 0:00:46.5]}
19... Rad8 {[%clk 0:00:51.1]} 20. Bd3 {[%clk 0:00:44.9]} 20... c5 {[%clk
0:00:50.1]} 21. Qf2 {[%clk 0:00:44.5]} 21... b4 {[%clk 0:00:50.1]} 22. Ne2
{[%clk 0:00:41.2]} 22... Rb8 {[%clk 0:00:41.4]} 23. Nc1 {[%clk 0:00:35.1]} 23...
c4 {[%clk 0:00:40.3]} 24. Be2 {[%clk 0:00:35.1]} 24... b3 {[%clk 0:00:40.4]} 25.
cxb3 {[%clk 0:00:28.4]} 25... cxb3 {[%clk 0:00:40.9]} 26. axb3 {[%clk
0:00:29.3]} 26... Bf7 {[%clk 0:00:39]} 27. Bd3 {[%clk 0:00:27.5]} 27... Nd7
{[%clk 0:00:37.8]} 28. Rge1 {[%clk 0:00:21.3]} 28... Nc5 {[%clk 0:00:37.8]} 29.
Bc2 {[%clk 0:00:21.8]} 29... a5 {[%clk 0:00:35.8]} 30. Qd4 {[%clk 0:00:22]}
30... Qb7 {[%clk 0:00:28.5]} 31. Qxd6 {[%clk 0:00:19.4]} 31... Rfc8 {[%clk
0:00:28.2]} 32. Re3 {[%clk 0:00:18]} 32... a4 {[%clk 0:00:28.2]} 33. Rc3 {[%clk
0:00:14.8]} 33... axb3 {[%clk 0:00:27.3]} 34. Bd3 {[%clk 0:00:09.3]} 34... Na4
{[%clk 0:00:23.1]} 35. Rxc8+ {[%clk 0:00:08]} 35... Rxc8 {[%clk 0:00:23.7]} 36.
Qa3 {[%clk 0:00:07.4]} 36... Nc5 {[%clk 0:00:22.7]} 37. e5 {[%clk 0:00:04.4]}
37... fxe5 {[%clk 0:00:21.3]} 38. fxe5 {[%clk 0:00:05.3]} 38... Qf3 {[%clk
0:00:19.4]} 39. Rd2 {[%clk 0:00:05.1]} 39... Be6 {[%clk 0:00:16.6]} 40. Qb4
{[%clk 0:00:05]} 40... Nxd3 {[%clk 0:00:16.5]} 41. Rxd3 {[%clk 0:00:04.5]} 41...
Rxc1+ {[%clk 0:00:14.6]} 42. Kxc1 {[%clk 0:00:04.9]} 42... Qxd3 {[%clk
0:00:15.3]} 43. Qf4 {[%clk 0:00:03.9]} 43... Qc2# {[%clk 0:00:15.3]} 0-1

[Event "*** SCC Grand Prix: Titled Tuesday Blitz"]
[Site "Chess.com"]
[Date "2020.10.13"]
[Round "2"]
[White "amintabatabaei"]
[Black "Keithonsky"]
[Result "1-0"]
[WhiteElo "2903"]
[BlackElo "2577"]
[TimeControl "180+1"]
[EndTime "10:17:39 PDT"]
[Termination "amintabatabaei won by resignation"]

1. e4 {[%clk 0:03:00.9]} 1... e6 {[%clk 0:02:59.3]} 2. d4 {[%clk 0:02:58.1]}
2... d5 {[%clk 0:02:59.5]} 3. Nc3 {[%clk 0:02:55.4]} 3... dxe4 {[%clk 0:02:57]}
4. Nxe4 {[%clk 0:02:56.3]} 4... Nd7 {[%clk 0:02:57.4]} 5. Nf3 {[%clk 0:02:56.6]}
5... Ngf6 {[%clk 0:02:57.8]} 6. Bd3 {[%clk 0:02:56.5]} 6... Nxe4 {[%clk
0:02:57.7]} 7. Bxe4 {[%clk 0:02:57.4]} 7... Nf6 {[%clk 0:02:58.6]} 8. Bd3 {[%clk
0:02:55.6]} 8... c5 {[%clk 0:02:59]} 9. dxc5 {[%clk 0:02:46.4]} 9... Bxc5 {[%clk
0:02:56]} 10. Qe2 {[%clk 0:02:46.7]} 10... O-O {[%clk 0:02:54.3]} 11. Bg5 {[%clk
0:02:46.6]} 11... Be7 {[%clk 0:02:49.8]} 12. O-O-O {[%clk 0:02:45.9]} 12... Qa5
{[%clk 0:02:49]} 13. Kb1 {[%clk 0:02:46]} 13... h6 {[%clk 0:02:39]} 14. Bxf6
{[%clk 0:02:39.7]} 14... Bxf6 {[%clk 0:02:39.9]} 15. h4 {[%clk 0:02:39.9]} 15...
Bd7 {[%clk 0:02:30.5]} 16. g4 {[%clk 0:02:17]} 16... Qb4 {[%clk 0:02:19.4]} 17.
c4 {[%clk 0:02:16.2]} 17... Bc6 {[%clk 0:02:16.4]} 18. Rh3 {[%clk 0:02:07.4]}
18... Bxf3 {[%clk 0:01:52.2]} 19. Rxf3 {[%clk 0:02:08.3]} 19... Bxh4 {[%clk
0:01:52.2]} 20. Qe4 {[%clk 0:01:52]} 20... g6 {[%clk 0:01:51.8]} 21. a3 {[%clk
0:01:41.8]} 21... Qb6 {[%clk 0:01:47.2]} 22. Bc2 {[%clk 0:01:35.3]} 22... Rad8
{[%clk 0:01:43.7]} 23. Rh1 {[%clk 0:01:23.7]} 23... Bg5 {[%clk 0:01:42.7]} 24.
Rb3 {[%clk 0:01:23.7]} 24... Qc6 {[%clk 0:01:33.2]} 25. Rxb7 {[%clk 0:01:11]}
25... Qxe4 {[%clk 0:01:33]} 26. Bxe4 {[%clk 0:01:11.9]} 26... Rd2 {[%clk
0:01:33.8]} 27. f3 {[%clk 0:01:05.3]} 27... a5 {[%clk 0:01:32.2]} 28. c5 {[%clk
0:01:03.5]} 28... Kg7 {[%clk 0:01:27.1]} 29. c6 {[%clk 0:01:00.3]} 29... Rc8
{[%clk 0:01:27.6]} 30. Rc1 {[%clk 0:00:59.9]} 30... Bf4 {[%clk 0:01:27.6]} 31.
b4 {[%clk 0:00:51.3]} 31... axb4 {[%clk 0:01:22.1]} 32. axb4 {[%clk 0:00:52.2]}
32... Ra8 {[%clk 0:01:22.2]} 33. Rb5 {[%clk 0:00:37.8]} 33... Be3 {[%clk
0:01:14.5]} 34. c7 {[%clk 0:00:31.4]} 34... Bd4 {[%clk 0:01:13.5]} 35. Rc3
{[%clk 0:00:19.6]} 35... Rc8 {[%clk 0:00:59.2]} 36. Rb8 {[%clk 0:00:16.5]} 36...
Rxc7 {[%clk 0:00:30.1]} 37. Rxc7 {[%clk 0:00:17.1]} 37... Be5 {[%clk 0:00:29.7]}
38. Rbb7 {[%clk 0:00:14.7]} 38... Bxc7 {[%clk 0:00:29.7]} 39. Rxc7 {[%clk
0:00:15.6]} 39... Kf6 {[%clk 0:00:30.1]} 40. b5 {[%clk 0:00:15.1]} 40... Rd4
{[%clk 0:00:28.2]} 41. Kc2 {[%clk 0:00:15]} 41... Rb4 {[%clk 0:00:28.4]} 42. Rb7
{[%clk 0:00:15.1]} 42... Ke5 {[%clk 0:00:28.3]} 43. Kc3 {[%clk 0:00:15.6]} 43...
Ra4 {[%clk 0:00:25.2]} 44. Rxf7 {[%clk 0:00:15.5]} 44... Ra3+ {[%clk 0:00:24.6]}
45. Kb4 {[%clk 0:00:15.8]} 45... Ra2 {[%clk 0:00:24.1]} 46. b6 {[%clk 0:00:16]}
46... Rb2+ {[%clk 0:00:25]} 47. Ka5 {[%clk 0:00:16.4]} 47... h5 {[%clk
0:00:25.4]} 48. gxh5 {[%clk 0:00:16.1]} 48... gxh5 {[%clk 0:00:26.3]} 49. b7
{[%clk 0:00:16.6]} 1-0

[Event "*** SCC Grand Prix: Titled Tuesday Blitz"]
[Site "Chess.com"]
[Date "2020.10.13"]
[Round "2"]
[White "MikeSailer"]
[Black "Ladislav1969"]
[Result "1-0"]
[WhiteElo "2105"]
[BlackElo "2373"]
[TimeControl "180+1"]
[EndTime "10:17:39 PDT"]
[Termination "MikeSailer won by checkmate"]

1. d4 {[%clk 0:03:00.4]} 1... Nf6 {[%clk 0:02:59.1]} 2. Bf4 {[%clk 0:02:58.3]}
2... g6 {[%clk 0:02:59.1]} 3. e3 {[%clk 0:02:58.9]} 3... Bg7 {[%clk 0:02:59.1]}
4. Nf3 {[%clk 0:02:59.6]} 4... d5 {[%clk 0:02:59.2]} 5. Be2 {[%clk 0:02:59.6]}
5... c5 {[%clk 0:02:59.4]} 6. c3 {[%clk 0:02:58.7]} 6... b6 {[%clk 0:02:58]} 7.
h3 {[%clk 0:02:57.9]} 7... Nc6 {[%clk 0:02:56.3]} 8. O-O {[%clk 0:02:57.8]} 8...
Bb7 {[%clk 0:02:53.8]} 9. Nbd2 {[%clk 0:02:56.5]} 9... O-O {[%clk 0:02:48.5]}
10. Ne5 {[%clk 0:02:56.3]} 10... Nd7 {[%clk 0:02:47.8]} 11. Nxd7 {[%clk
0:02:43.7]} 11... Qxd7 {[%clk 0:02:47.1]} 12. Nf3 {[%clk 0:02:43.5]} 12... Rfe8
{[%clk 0:01:50.1]} 13. Bb5 {[%clk 0:02:34.9]} 13... a6 {[%clk 0:01:48.6]} 14.
Ne5 {[%clk 0:02:22.4]} 14... Bxe5 {[%clk 0:01:46.5]} 15. Bxc6 {[%clk 0:02:22.5]}
15... Qxc6 {[%clk 0:01:43.9]} 16. Bxe5 {[%clk 0:02:21.7]} 16... f6 {[%clk
0:01:43.7]} 17. Bg3 {[%clk 0:02:12.8]} 17... e5 {[%clk 0:01:43.3]} 18. Qg4
{[%clk 0:01:48.7]} 18... exd4 {[%clk 0:01:30.6]} 19. exd4 {[%clk 0:01:38.5]}
19... Re4 {[%clk 0:01:30.6]} 20. Qd1 {[%clk 0:01:27.5]} 20... cxd4 {[%clk
0:01:26.8]} 21. cxd4 {[%clk 0:01:25.6]} 21... Rc8 {[%clk 0:00:47.6]} 22. f3
{[%clk 0:01:23.7]} 22... Re6 {[%clk 0:00:40.3]} 23. Rf2 {[%clk 0:01:18.4]} 23...
Qc4 {[%clk 0:00:33.3]} 24. b3 {[%clk 0:00:50.4]} 24... Qb4 {[%clk 0:00:32]} 25.
Rb1 {[%clk 0:00:43.3]} 25... a5 {[%clk 0:00:31.8]} 26. Kh2 {[%clk 0:00:42.6]}
26... Ba6 {[%clk 0:00:31.1]} 27. Rd2 {[%clk 0:00:29.5]} 27... Qc3 {[%clk
0:00:30.3]} 28. Bf2 {[%clk 0:00:28.2]} 28... Kg7 {[%clk 0:00:29]} 29. Rbb2
{[%clk 0:00:23]} 29... Rce8 {[%clk 0:00:25.8]} 30. Rbc2 {[%clk 0:00:22.8]} 30...
Qb4 {[%clk 0:00:25.9]} 31. Rc7+ {[%clk 0:00:22.3]} 31... R8e7 {[%clk 0:00:25.8]}
32. Rdc2 {[%clk 0:00:19.5]} 32... Bb5 {[%clk 0:00:22.7]} 33. Rxe7+ {[%clk
0:00:18.5]} 33... Rxe7 {[%clk 0:00:21.9]} 34. Rc8 {[%clk 0:00:18.6]} 34... Qa3
{[%clk 0:00:19.7]} 35. Qc2 {[%clk 0:00:16.7]} 35... Qd6+ {[%clk 0:00:19.3]} 36.
Bg3 {[%clk 0:00:16.8]} 36... Qe6 {[%clk 0:00:18.6]} 37. Rb8 {[%clk 0:00:13.2]}
37... h5 {[%clk 0:00:16.9]} 38. h4 {[%clk 0:00:12.7]} 38... g5 {[%clk
0:00:14.9]} 39. hxg5 {[%clk 0:00:12.1]} 39... fxg5 {[%clk 0:00:14.8]} 40. Be5+
{[%clk 0:00:12.6]} 40... Kf7 {[%clk 0:00:06.4]} 41. Qh7# {[%clk 0:00:11.6]} 1-0